bitfinex/quotes_SOLUSD_20250818
["timestamp","ask_amount","ask_price","bid_price","bid_amount"]
[1755506704896,5.05801827,181.46,181.45,8.16797756]
[1755506705302,5.05806853,181.46,181.45,8.16797756]
[1755506705520,5.05806853,181.46,181.45,13.67913765]
[1755506706224,5.05806853,181.46,181.45,6.24116009]
[1755506706408,5.05806853,181.46,181.45,13.67913765]
[1755506707005,5.05806853,181.46,181.45,6.24116009]
[1755506708415,13.18604609,181.46,181.45,0.03]
[1755506710308,17.28015089,181.46,181.45,0.03]
[1755506712631,9.84217333,181.46,181.45,0.03]
[1755506712801,17.28015089,181.46,181.45,0.03]
[1755506713601,11.80700733,181.46,181.45,0.03]
[1755506713806,17.28280565,181.46,181.45,0.03]
[1755506714502,9.15482875,181.46,181.45,0.03]
[1755506714701,16.59279329,181.46,181.45,0.03]
[1755506714929,13.1862147,181.46,181.45,0.03]
[1755506715443,17.28558906,181.46,181.45,0.03]
[1755506715809,47.89479285,181.46,181.45,0.03]
[1755506716027,57.85882328,181.46,181.45,0.03]
[1755506716931,57.85901492,181.46,181.45,0.03]
[1755506717320,53.24981113,181.46,181.44,0.03]
[1755506717521,61.03192704,181.45,181.44,0.03]
[1755506718321,56.4157807,181.45,181.44,0.03]
[1755506719525,55.7157807,181.45,181.44,0.03]
[1755506719725,60.33704652,181.45,181.44,0.03]
[1755506719935,9.15780314,181.45,181.44,0.71]
[1755506720116,55.6957807,181.45,181.44,0.71]
[1755506720312,55.6957807,181.45,181.44,0.03]
[1755506721530,60.31704652,181.45,181.44,0.03]
[1755506722139,60.29704652,181.45,181.44,0.03]
[1755506722520,60.99704652,181.45,181.44,0.03]
[1755506722742,52.27640634,181.45,181.44,0.03]
[1755506722930,56.39342147,181.45,181.44,0.03]
[1755506723239,56.39342147,181.45,181.43,0.03]
[1755506723421,21.24644884,181.44,181.43,0.03]
[1755506726444,16.61342147,181.44,181.43,0.03]
[1755506726821,17.31363154,181.44,181.43,0.03]
[1755506727546,43.31363154,181.44,181.43,0.03]
[1755506728958,43.31332016,181.44,181.43,0.03]
[1755506731950,37.81700733,181.44,181.43,0.03]
[1755506732141,43.31482669,181.44,181.43,0.03]
[1755506733055,43.31485154,181.44,181.43,0.03]
[1755506733350,42.61485154,181.44,181.43,0.71]
[1755506733741,81.63485154,181.44,181.43,0.71]
[1755506734326,81.63485154,181.44,181.43,0.03]
[1755506735134,77.51646494,181.44,181.43,0.03]
[1755506735335,42.61455097,181.44,181.43,0.71]
[1755506735537,81.63455097,181.44,181.43,0.71]
[1755506736253,81.63455097,181.44,181.43,0.03]
[1755506736960,82.35455097,181.44,181.43,0.03]
[1755506737247,61.86601481,181.44,181.43,0.03]
[1755506737453,66.49904218,181.44,181.43,0.03]
[1755506738240,59.06106462,181.44,181.43,0.03]
[1755506738440,66.49904218,181.44,181.43,0.03]
[1755506738737,26.0,181.42,181.41,0.03]
[1755506738939,86.30829311,181.42,181.41,0.03]
[1755506739154,87.00829311,181.42,181.41,0.03]
[1755506741027,82.19020708,181.42,181.41,0.03]
[1755506741228,82.3764535,181.42,181.41,0.03]
[1755506741833,87.88894766,181.42,181.41,0.03]
[1755506742030,87.88917658,181.42,181.41,0.03]
[1755506743162,81.67710515,181.42,181.41,0.71]
[1755506743859,81.67710515,181.42,181.41,0.03]
[1755506745170,86.29318378,181.42,181.41,0.03]
[1755506746337,78.85520622,181.42,181.41,0.03]
[1755506746536,86.29318378,181.42,181.41,0.03]
[1755506746738,81.65710515,181.42,181.41,0.03]
[1755506747556,74.21912759,181.42,181.41,0.03]
[1755506747760,81.65710515,181.42,181.41,0.03]
[1755506750253,81.65762412,181.42,181.41,0.03]
[1755506750567,81.6576248,181.42,181.41,0.03]
[1755506750957,82.3376248,181.42,181.41,0.03]
[1755506751282,87.84969623,181.42,181.39,0.03]
[1755506751446,33.43797756,181.4,181.39,0.03]
[1755506751756,81.6576248,181.4,181.39,0.03]
[1755506751963,82.3376248,181.4,181.39,0.03]
[1755506752643,87.85030396,181.4,181.39,0.03]
[1755506753563,61.85030396,181.4,181.39,0.03]
[1755506753767,26.0,181.38,181.37,0.03]
[1755506753968,74.21964724,181.38,181.37,0.03]
[1755506754151,74.21964724,181.38,181.37,0.71]
[1755506754352,78.85638478,181.38,181.37,0.71]
[1755506755160,86.29436234,181.38,181.37,0.71]
[1755506755469,86.29436234,181.38,181.37,0.03]
[1755506758463,87.85091182,181.38,181.37,0.03]
[1755506758870,87.83091182,181.38,181.37,0.03]
[1755506759372,86.45122408,181.38,181.37,0.03]
[1755506759544,87.8320555,181.38,181.37,0.03]
[1755506760060,94.01754465,181.38,181.37,0.03]
[1755506760365,102.93827107,181.38,181.37,0.03]
[1755506760566,15.10621557,181.37,181.33,0.03]
[1755506760769,26.0,181.34,181.33,0.03]
[1755506760970,81.69876848,181.34,181.33,0.03]
[1755506761172,82.37876848,181.34,181.33,0.03]
[1755506761773,87.89327162,181.34,181.33,0.03]
[1755506762142,80.45529406,181.34,181.33,0.03]
[1755506762346,87.89327162,181.34,181.33,0.03]
[1755506762646,48.81327162,181.34,181.33,0.03]
[1755506762846,88.19327162,181.34,181.29,0.68]
[1755506763080,7.43797756,181.31,181.26,6.19693699]
[1755506763249,6.18246423,181.32,181.27,0.68]
[1755506763250,4.63357993,181.29,181.27,0.68]
[1755506763456,44.43910145,181.28,181.24,5.51754579]
[1755506763665,44.45910145,181.27,181.25,7.43797756]
[1755506763866,3.67902977,181.26,181.25,7.43797756]
[1755506764046,3.67902977,181.26,181.24,5.51754579]
[1755506764247,3.70466016,181.25,181.24,5.51754579]
[1755506764669,3.70466016,181.25,181.24,13.63552335]
[1755506765178,3.70466016,181.25,181.24,28.74173892]
[1755506766052,39.4,181.27,181.25,15.10621557]
[1755506766265,39.4,181.28,181.26,8.11797756]
[1755506766469,39.4,181.28,181.27,7.43797756]
[1755506766665,39.4,181.28,181.27,8.11797756]
[1755506767171,39.4,181.28,181.27,0.68]
[1755506767486,15.10621557,181.39,181.27,27.42619181]
[1755506767487,4.63357993,181.35,181.27,27.42619181]
[1755506767780,40.82020951,181.34,181.28,15.78621557]
[1755506767978,40.82020951,181.33,181.32,7.43797756]
[1755506768182,40.82020951,181.33,181.32,8.11797756]
[1755506768183,1.38020951,181.33,181.32,8.11797756]
[1755506768349,5.51214886,181.42,181.32,8.11797756]
[1755506768350,4.63357993,181.39,181.32,8.11797756]
[1755506768558,40.82001872,181.38,181.36,7.43797756]
[1755506768771,1.38001872,181.37,181.35,7.43797756]
[1755506768972,39.44,181.36,181.35,7.43797756]
[1755506769174,40.81989279,181.36,181.35,7.43797756]
[1755506769366,40.81988693,181.36,181.35,13.63217662]
[1755506769565,40.85400237,181.36,181.35,6.19419906]
[1755506769753,40.85400237,181.36,181.32,0.68]
[1755506769982,40.85400237,181.36,181.28,15.69060438]
[1755506769983,13.60988703,181.35,181.3,7.43797756]
[1755506770151,40.83988693,181.34,181.31,0.68]
[1755506770358,1.37988693,181.33,181.31,0.68]
[1755506770661,39.46,181.32,181.31,0.68]
[1755506770870,39.46,181.32,181.31,8.11797756]
[1755506771076,39.46,181.32,181.31,23.22419313]
[1755506771284,39.46,181.34,181.32,5.5151114]
[1755506771591,39.46,181.34,181.26,1.9]
[1755506771592,1.38011478,181.33,181.3,6.19542418]
[1755506771890,40.82011478,181.32,181.3,6.19542418]
[1755506772096,40.82011478,181.32,181.28,6.19626042]
[1755506772097,1.38011478,181.31,181.28,6.19626042]
[1755506772412,39.46,181.3,181.28,5.51626042]
[1755506772554,1.38011478,181.29,181.27,6.1965725]
[1755506772753,39.5,181.28,181.27,6.1965725]
[1755506772995,40.88011478,181.28,181.27,6.1965725]
[1755506773560,39.48,181.28,181.27,6.1965725]
[1755506773762,8.11797756,181.31,181.27,6.1965725]
[1755506773996,40.86044497,181.3,181.27,6.1965725]
[1755506774150,1.38044497,181.29,181.27,6.1965725]
[1755506774357,39.48,181.28,181.27,6.1965725]
[1755506775174,0.68,181.3,181.27,5.5165725]
[1755506775377,39.48,181.29,181.27,5.5165725]
[1755506776709,39.48,181.29,181.27,6.2165725]
[1755506777998,3.69904673,181.28,181.27,6.2165725]
[1755506778821,3.69904673,181.28,181.27,5.5165725]
[1755506779125,3.69904673,181.28,181.25,6.21724137]
[1755506779335,43.13904673,181.27,181.25,6.21724137]
[1755506779511,3.69904673,181.26,181.25,6.21724137]
[1755506780820,3.69904673,181.26,181.25,5.51724137]
[1755506781946,13.19764684,181.26,181.24,0.03]
[1755506782119,82.86923325,181.25,181.17,0.7]
[1755506782324,7.43797756,181.22,181.17,0.7]
[1755506782618,43.23904673,181.21,181.18,0.7]
[1755506782827,3.69904673,181.2,181.18,0.7]
[1755506783023,43.23904673,181.19,181.16,8.13797756]
[1755506783338,3.69904673,181.18,181.16,8.13797756]
[1755506783532,43.23904673,181.17,181.16,8.13797756]
[1755506783935,43.23904673,181.17,181.16,6.21998233]
[1755506784748,43.23904673,181.17,181.16,5.51998233]
[1755506785121,43.91904673,181.17,181.15,5.52021717]
[1755506785321,3.69904673,181.16,181.15,5.52021717]
[1755506785843,43.23904673,181.16,181.15,6.22021717]
[1755506786047,39.54,181.17,181.16,15.10621557]
[1755506786353,43.23439519,181.17,181.16,8.13797756]
[1755506788144,43.23439519,181.17,181.16,13.65795989]
[1755506788446,43.23439519,181.17,181.16,6.21998233]
[1755506789048,43.23439519,181.17,181.16,13.65795989]
[1755506789356,43.23439519,181.17,181.16,5.51998233]
[1755506789746,3.69439519,181.17,181.16,5.51998233]
[1755506789928,43.21439519,181.17,181.16,6.21998233]
[1755506790243,3.69439519,181.17,181.16,13.65795989]
[1755506790446,43.21439519,181.17,181.16,13.65795989]
[1755506790847,39.52,181.2,181.17,15.10621557]
[1755506791049,39.52,181.2,181.19,7.43797756]
[1755506791249,39.52,181.22,181.19,0.7]
[1755506791454,39.52,181.22,181.21,7.43797756]
[1755506791749,43.20956041,181.22,181.21,8.13797756]
[1755506792124,43.20956041,181.22,181.21,13.6564368]
[1755506792437,39.52,181.22,181.21,13.6564368]
[1755506792632,0.68,181.29,181.22,15.10621557]
[1755506792844,0.68,181.29,181.23,0.7]
[1755506792845,43.2099453,181.28,181.23,0.7]
[1755506793048,3.6899453,181.27,181.25,7.43797756]
[1755506793338,39.52,181.28,181.25,7.43797756]
[1755506793544,3.69016268,181.27,181.24,0.7]
[1755506793846,3.69016268,181.26,181.25,12.95521893]
[1755506794051,3.69016268,181.27,181.25,13.65521893]
[1755506794227,3.69084333,181.26,181.25,13.65521893]
[1755506794431,3.69084333,181.27,181.25,13.65521893]
[1755506794741,39.52,181.28,181.25,13.65521893]
[1755506794742,3.69084333,181.26,181.25,13.65521893]
[1755506794939,3.69084333,181.27,181.25,13.65521893]
[1755506795457,5.51456378,181.34,181.25,13.65521893]
[1755506795458,0.68,181.33,181.26,8.13797756]
[1755506795753,44.59255075,181.32,181.28,7.43797756]
[1755506795935,5.07255075,181.31,181.29,5.51602404]
[1755506796253,3.69215499,181.3,181.29,5.51602404]
[1755506796456,3.69215499,181.3,181.29,12.9540016]
[1755506796651,3.69215499,181.31,181.29,12.9540016]
[1755506796854,0.68,181.35,181.29,20.00608416]
[1755506797041,39.52,181.33,181.3,0.7]
[1755506797227,3.69219293,181.32,181.29,19.30608416]
[1755506797436,39.52,181.33,181.31,0.7]
[1755506797752,0.06,181.36,181.3,15.10621557]
[1755506797957,43.21238502,181.35,181.32,7.43797756]
[1755506798137,3.69238502,181.34,181.31,19.30395454]
[1755506798329,3.69238502,181.33,181.31,19.30395454]
[1755506798532,4.37238502,181.32,181.31,5.51541558]
[1755506798732,44.59256938,181.32,181.31,5.51541558]
[1755506798937,45.27260012,181.32,181.31,5.51541558]
[1755506799437,44.59260012,181.32,181.31,5.51541558]
[1755506799837,45.27260012,181.32,181.29,5.51602404]
[1755506800047,3.69238502,181.31,181.29,5.51602404]
[1755506800242,40.2,181.32,181.29,5.51602404]
[1755506800426,3.6943156,181.31,181.29,5.51602404]
[1755506800632,3.6943156,181.3,181.29,5.51602404]
[1755506801957,13.19277385,181.3,181.25,13.7927562]
[1755506802158,52.03277385,181.29,181.25,14.4927562]
[1755506802329,52.03277385,181.29,181.25,19.30999757]
[1755506802330,3.6943156,181.28,181.25,19.30999757]
[1755506802527,3.6943156,181.27,181.25,19.30999757]
[1755506802756,3.6943156,181.26,181.25,5.51724137]
[1755506803358,3.6943156,181.26,181.25,6.21724137]
[1755506804434,3.6943156,181.26,181.25,13.65521893]
[1755506804649,39.5,181.29,181.25,27.44832237]
[1755506804847,3.69816788,181.28,181.26,7.43797756]
[1755506805154,3.69816788,181.27,181.26,7.43797756]
[1755506805557,3.69816788,181.27,181.25,19.31034481]
[1755506805759,47.61797756,181.29,181.25,19.31034481]
[1755506805947,4.3786131,181.28,181.25,19.31034481]
[1755506806169,3.6986131,181.27,181.25,21.21034481]
[1755506806344,3.6986131,181.26,181.25,21.21034481]
[1755506806569,3.6986131,181.26,181.25,28.64832237]
[1755506806938,3.69871429,181.28,181.26,15.10621557]
[1755506807134,39.5,181.29,181.27,8.13797756]
[1755506807356,39.5,181.29,181.28,8.13797756]
[1755506807555,39.46,181.32,181.28,8.13797756]
[1755506807743,0.06,181.33,181.3,7.43797756]
[1755506808062,0.06,181.33,181.32,7.43797756]
[1755506808363,0.06,181.33,181.32,5.5151114]
[1755506808861,0.73,181.33,181.32,5.5151114]
[1755506810251,0.73,181.33,181.3,5.5157198]
[1755506810449,0.06,181.33,181.3,5.5157198]
[1755506810961,0.06,181.33,181.3,12.95369736]
[1755506811168,0.06,181.33,181.31,8.13797756]
[1755506811862,0.06,181.33,181.3,12.95369736]
[1755506812050,0.73,181.33,181.3,12.95369736]
[1755506813063,0.06,181.33,181.3,12.95369736]
[1755506813770,0.06,181.33,181.3,5.5157198]
[1755506813771,47.50797756,181.32,181.3,5.5157198]
[1755506813968,8.10797756,181.31,181.3,5.5157198]
[1755506814491,0.67,181.31,181.28,5.51632833]
[1755506814784,39.4,181.32,181.28,8.11632833]
[1755506815191,40.07,181.32,181.28,21.20714915]
[1755506815488,40.07,181.32,181.31,7.43797756]
[1755506815489,39.4,181.32,181.31,7.43797756]
[1755506815648,39.4,181.32,181.29,0.7]
[1755506815649,39.4,181.32,181.3,7.43797756]
[1755506815850,39.4,181.32,181.29,8.13797756]
[1755506816050,39.4,181.32,181.3,0.7]
[1755506816666,39.4,181.32,181.31,5.51541558]
[1755506818096,40.07,181.32,181.31,5.51541558]
[1755506818370,47.50797756,181.32,181.31,5.51541558]
[1755506818770,40.07,181.32,181.31,5.51541558]
[1755506818971,43.76577654,181.32,181.31,5.51541558]
[1755506819666,51.2037541,181.32,181.31,5.51541558]
[1755506820172,51.2637541,181.32,181.3,1.9]
[1755506820380,51.2637541,181.32,181.3,7.4157198]
[1755506820381,5.74613637,181.31,181.3,7.4157198]
[1755506820572,11.8037541,181.31,181.3,7.4157198]
[1755506820772,13.18411448,181.31,181.3,7.4157198]
[1755506821346,11.8037541,181.31,181.3,7.4157198]
[1755506821552,43.09577654,181.31,181.3,8.1157198]
[1755506822157,43.09577654,181.31,181.3,7.4157198]
[1755506823964,43.09577654,181.31,181.29,5.51602404]
[1755506824165,3.69577654,181.3,181.29,5.51602404]
[1755506824357,39.4,181.31,181.29,5.51602404]
[1755506824560,3.69475782,181.3,181.29,6.21602404]
[1755506826285,39.4,181.31,181.29,6.21602404]
[1755506826880,39.4,181.31,181.29,8.11602404]
[1755506827388,3.69493768,181.3,181.29,8.11602404]
[1755506827774,3.69493768,181.3,181.29,7.41602404]
[1755506828094,5.74537077,181.3,181.25,0.03]
[1755506828269,45.18542247,181.29,181.25,0.03]
[1755506828468,5.07544882,181.28,181.25,0.03]
[1755506828665,43.81493768,181.27,181.25,0.03]
[1755506828864,11.13291524,181.26,181.25,0.03]
[1755506829064,11.80291524,181.26,181.25,0.03]
[1755506829886,4.36493768,181.26,181.25,0.03]
[1755506830090,11.80291524,181.26,181.25,0.03]
[1755506830686,11.13291524,181.26,181.25,0.03]
[1755506831288,3.69493768,181.26,181.25,0.03]
[1755506833297,4.67972067,181.32,181.26,15.10621557]
[1755506833592,41.44048403,181.31,181.29,7.43797756]
[1755506833898,40.06,181.31,181.3,8.13797756]
[1755506834396,41.44020247,181.31,181.3,13.65369736]
[1755506835112,41.44020247,181.31,181.3,5.5157198]
[1755506835394,46.23156814,181.31,181.3,5.5157198]
[1755506835592,45.56156814,181.31,181.3,5.5157198]
[1755506835989,41.44020247,181.31,181.3,5.5157198]
[1755506836369,41.44020247,181.31,181.29,11.62567366]
[1755506836564,1.38020247,181.3,181.29,11.62567366]
[1755506836769,1.38020247,181.3,181.28,5.51632833]
[1755506836970,1.38020247,181.29,181.28,6.23632833]
[1755506837278,1.38020247,181.29,181.28,17.86200199]
[1755506838576,1.38020247,181.29,181.28,17.14200199]
[1755506838780,1.38020247,181.29,181.28,19.04200199]
[1755506839766,40.06,181.31,181.28,19.04200199]
[1755506839966,1.38028192,181.3,181.28,19.76200199]
[1755506840203,40.06,181.31,181.29,12.34567366]
[1755506840390,40.06,181.31,181.3,11.62567366]
[1755506840596,0.06,181.32,181.3,12.34567366]
[1755506840791,0.06,181.32,181.31,12.34567366]
[1755506841497,0.06,181.32,181.31,19.76108924]
[1755506841671,0.06,181.32,181.31,34.86730481]
[1755506842507,1e-08,181.32,181.31,34.86730481]
[1755506842706,1e-08,181.33,181.32,15.10621557]
[1755506842883,1e-08,181.33,181.32,27.45188923]
[1755506843279,1e-08,181.33,181.32,15.82621557]
[1755506843478,1e-08,181.33,181.32,27.45188923]
[1755506843680,1e-08,181.33,181.32,32.96700063]
[1755506843894,1e-08,181.33,181.32,32.24700063]
[1755506844394,26.71000001,181.33,181.32,5.5151114]
[1755506844585,42.45892741,181.33,181.32,5.5151114]
[1755506845093,30.83325375,181.33,181.32,5.5151114]
[1755506845288,34.5441972,181.33,181.32,5.5151114]
[1755506845491,33.8341972,181.33,181.32,5.5151114]
[1755506845696,29.71094346,181.33,181.32,5.5151114]
[1755506845986,3.71094346,181.33,181.32,17.86078506]
[1755506846390,3.71094346,181.33,181.32,32.96700063]
[1755506846981,3.71094346,181.33,181.32,5.5151114]
[1755506847208,4.42094346,181.33,181.32,5.5151114]
[1755506847792,3.71094346,181.33,181.3,17.14139346]
[1755506848113,3.71094345,181.32,181.31,0.72]
[1755506848511,3.71094345,181.32,181.3,5.5157198]
[1755506848818,3.71094345,181.31,181.3,6.2357198]
[1755506849021,3.71094345,181.31,181.3,21.34193537]
[1755506849210,3.71094345,181.31,181.3,32.96760903]
[1755506849722,3.71094345,181.31,181.3,21.34193537]
[1755506850022,3.71094345,181.31,181.3,20.62193537]
[1755506850191,3.71094345,181.31,181.3,32.24760903]
[1755506850593,3.71094345,181.31,181.3,17.14139346]
[1755506853010,3.71094345,181.31,181.3,11.62567366]
[1755506853220,3.71094345,181.31,181.29,5.51602404]
[1755506853419,3.71094345,181.3,181.29,7.41602404]
[1755506853797,3.71094345,181.3,181.29,8.13602404]
[1755506854489,3.71094345,181.3,181.29,19.7616977]
[1755506856315,1e-08,181.33,181.29,33.55175782]
[1755506856501,1.38009409,181.32,181.29,21.20608416]
[1755506856704,1e-08,181.33,181.31,11.62567366]
[1755506856905,1.38009356,181.32,181.3,0.72]
[1755506857106,1e-08,181.33,181.29,21.20608416]
[1755506857308,1.3800933,181.32,181.31,0.72]
[1755506857516,1.3800933,181.32,181.31,6.23541558]
[1755506858014,1.3800933,181.32,181.31,17.86108924]
[1755506858221,1.3800933,181.32,181.31,17.14108924]
[1755506858423,1.38004271,181.32,181.31,12.98716052]
[1755506859422,1.38004271,181.32,181.31,14.88716052]
[1755506859608,1.38004271,181.32,181.31,15.60716052]
[1755506860219,1.38004271,181.32,181.31,14.88716052]
[1755506860736,1e-08,181.33,181.32,15.10621557]
[1755506860911,1e-08,181.33,181.32,23.29796051]
[1755506862336,1e-08,181.33,181.32,28.81307191]
[1755506863143,1e-08,181.35,181.34,15.10621557]
[1755506863318,9.26749562,181.37,181.34,24.47796051]
[1755506863646,9.26749562,181.37,181.36,7.47174494]
[1755506863935,1e-08,181.38,181.36,10.09174494]
[1755506864127,1e-08,181.38,181.37,23.29796051]
[1755506864327,1e-08,181.38,181.37,28.81155151]
[1755506864707,1e-08,181.4,181.38,15.10621557]
[1755506865018,1e-08,181.4,181.39,22.57796051]
[1755506865330,1e-08,181.4,181.39,23.29796051]
[1755506866128,1e-08,181.4,181.39,22.57796051]
[1755506866321,1e-08,181.4,181.39,28.09094358]
[1755506866729,1e-08,181.4,181.39,28.76094358]
[1755506867426,1e-08,181.42,181.4,15.10621557]
[1755506867607,1e-08,181.45,181.41,47.11174494]
[1755506867802,1e-08,181.45,181.44,22.57796051]
[1755506868020,0.69,181.44,181.42,7.47174494]
[1755506868417,0.69,181.44,181.42,12.98381637]
[1755506868634,4.38733642,181.43,181.42,5.51207143]
[1755506869299,0.69,181.43,181.42,5.51207143]
[1755506869502,4.38733642,181.43,181.42,5.51207143]
[1755506869714,3.69733642,181.44,181.42,12.98381637]
[1755506869927,3.69733642,181.43,181.42,12.98381637]
[1755506870234,3.69733642,181.44,181.42,12.98381637]
[1755506870527,4.38733642,181.43,181.42,5.51207143]
[1755506870717,0.69,181.43,181.42,5.51207143]
[1755506870923,4.38733642,181.43,181.42,5.51207143]
[1755506871229,0.69,181.43,181.42,5.51207143]
[1755506871429,4.38733642,181.43,181.41,5.51237528]
[1755506871632,0.69,181.43,181.41,5.51237528]
[1755506871832,4.38733642,181.43,181.41,5.51237528]
[1755506872028,0.69,181.43,181.41,5.51237528]
[1755506872203,4.38733642,181.43,181.41,5.51237528]
[1755506872402,0.69,181.43,181.41,5.51237528]
[1755506872629,4.38733642,181.43,181.41,5.51237528]
[1755506872829,4.38733642,181.43,181.41,12.98412022]
[1755506872830,0.69,181.43,181.41,12.98412022]
[1755506873130,3.69733642,181.44,181.41,12.98412022]
[1755506873345,3.69733642,181.44,181.43,7.47174494]
[1755506873508,0.06,181.46,181.43,15.55351256]
[1755506873717,0.06,181.46,181.45,7.47174494]
[1755506874235,0.06,181.46,181.45,8.14174494]
[1755506875528,0.06,181.46,181.45,13.65290503]
[1755506876537,0.06,181.47,181.46,15.10621557]
[1755506876831,0.06,181.49,181.47,22.57796051]
[1755506877134,0.06,181.49,181.48,7.47174494]
[1755506877931,0.06,181.5,181.48,8.14174494]
[1755506878118,0.06,181.5,181.49,23.24796051]
[1755506878626,0.06,181.5,181.49,28.75790596]
[1755506879429,0.06,181.5,181.49,28.08790596]
[1755506879624,0.06,181.5,181.49,12.98169039]
[1755506881121,0.06,181.5,181.49,13.65169039]
[1755506881540,0.1,181.51,181.49,13.65169039]
[1755506881841,0.1,181.51,181.5,23.24796051]
[1755506882944,0.79,181.51,181.5,5.50964187]
[1755506883118,0.79,181.51,181.5,7.40964187]
[1755506883826,0.79,181.51,181.5,14.88138681]
[1755506884252,0.1,181.51,181.5,7.40964187]
[1755506884545,8.26174494,181.51,181.5,7.40964187]
[1755506884851,8.26174494,181.51,181.5,14.88138681]
[1755506884852,0.1,181.51,181.5,14.88138681]
[1755506885014,0.1,181.51,181.5,28.75760238]
[1755506885216,0.06,181.52,181.51,15.10621557]
[1755506885217,1e-08,181.52,181.51,15.10621557]
[1755506885512,1e-08,181.52,181.51,23.24796051]
[1755506887027,1e-08,181.52,181.51,28.75729883]
[1755506887831,1e-08,181.53,181.51,28.75729883]
[1755506888143,1e-08,181.53,181.52,23.24796051]
[1755506889318,1e-08,181.53,181.52,28.75699532]
[1755506890447,1e-08,181.54,181.53,22.57796051]
[1755506890615,1e-08,181.54,181.53,23.24796051]
[1755506891428,1e-08,181.54,181.53,28.75669184]
[1755506891940,1e-08,181.54,181.53,30.65669184]
[1755506892959,1e-08,181.54,181.53,29.98669184]
[1755506894332,1e-08,181.54,181.53,22.5149469]
[1755506894533,1e-08,181.54,181.53,29.98669184]
[1755506896641,0.68000001,181.54,181.53,7.40873133]
[1755506897864,0.68000001,181.54,181.53,5.50873133]
[1755506898228,0.68000001,181.54,181.52,5.50903481]
[1755506898428,1e-08,181.54,181.52,5.50903481]
[1755506898764,0.68,181.53,181.52,5.50903481]
[1755506899447,0.68,181.53,181.52,7.40903481]
[1755506900370,4.35405726,181.53,181.52,7.40903481]
[1755506900559,37.8258022,181.53,181.49,1.93]
[1755506900758,4.35405726,181.52,181.49,1.93]
[1755506900979,3.67405726,181.51,181.5,5.50943406]
[1755506902767,4.35405726,181.51,181.5,5.50943406]
[1755506903074,11.8258022,181.51,181.49,7.4398541]
[1755506903375,4.35405726,181.5,181.49,7.4398541]
[1755506903576,11.8258022,181.5,181.49,1.93]
[1755506903750,11.8258022,181.5,181.49,0.03]
[1755506906069,4.35405726,181.5,181.49,0.03]
[1755506906252,15.92257462,181.5,181.49,0.03]
[1755506906573,16.44552287,181.5,181.49,0.03]
[1755506907260,59.8851352,181.5,181.49,0.03]
[1755506907455,51.73339026,181.5,181.49,0.03]
[1755506907669,3.67405726,181.5,181.49,8.18174494]
[1755506907990,3.67405726,181.5,181.49,0.71]
[1755506908160,3.67405726,181.5,181.49,0.03]
[1755506908483,1e-08,181.5,181.49,23.28796051]
[1755506908780,1e-08,181.54,181.5,15.10621557]
[1755506908957,1e-08,181.54,181.53,5.50873133]
[1755506909467,1e-08,181.54,181.53,6.18873133]
[1755506910070,1e-08,181.54,181.53,5.50873133]
[1755506911478,0.68000001,181.54,181.53,5.50873133]
[1755506911984,8.15174495,181.54,181.51,5.50933832]
[1755506912170,0.68,181.53,181.51,5.50933832]
[1755506912780,7.47174495,181.54,181.51,5.50933832]
[1755506912957,0.68000001,181.54,181.51,5.50933832]
[1755506913358,8.15174495,181.54,181.5,13.77347732]
[1755506913979,8.15174495,181.54,181.5,14.45347732]
[1755506914285,1e-08,181.54,181.52,7.47174494]
[1755506914455,1e-08,181.54,181.53,0.68]
[1755506914983,1e-08,181.54,181.51,7.47174494]
[1755506915288,1e-08,181.54,181.5,27.43486413]
[1755506915477,1e-08,181.54,181.51,0.68]
[1755506917405,8.15174495,181.54,181.52,5.50903481]
[1755506917683,12.26630092,181.53,181.52,5.50903481]
[1755506917875,12.26626557,181.53,181.52,5.50903481]
[1755506918066,8.15174494,181.53,181.52,5.50903481]
[1755506918461,12.26904306,181.53,181.52,5.50903481]
[1755506918777,11.58904306,181.53,181.51,5.50933832]
[1755506918972,7.47174494,181.53,181.51,5.50933832]
[1755506919471,1e-08,181.54,181.51,5.50933832]
[1755506919675,7.47174494,181.53,181.51,5.50933832]
[1755506919870,7.47174495,181.54,181.52,0.68]
[1755506920075,7.47174495,181.54,181.51,5.50933832]
[1755506920590,7.47174494,181.52,181.51,5.50933832]